Cogmind - Beta 16 @@@ ROGUE MODE // 2025.11.02 @ 06:03:44 Player: lepire Result: Destroyed by YI-UF0 with YI-UF0's Doublenader Performance ------------- Evolutions (0) 0 Regions Visited (2) 400 Robots Destroyed (18) 90 Value Destroyed (215) 215 Prototype IDs (2) 40 Alien Tech Used (0) 0 Bonus (0) 0 TOTAL SCORE: 745 Bonus ------- None Cogmind --------- Core Integrity 0/250 Matter 300/300 Energy 99/100 System Corruption 0% Temperature Cool (62) Movement Treading (240) Ox1 Location -10/Mines Parts ------- > --- POWER (1) -------- (None) > --- PROPULSION (2) --- Light Treads Compact Wheel > --- UTILITY (2) ------ Large Storage Unit Light Armor Plating > --- WEAPON (2) ------- EM Pulse Gun EM Pulse Gun > --- INVENTORY (15) --- Light Treads Wheel Structural Scanner Sensor Array Hacking Suite Light Cannon Datajack Mining Laser Peak State ------------ > --- POWER ------------ Light Ion Engine > --- PROPULSION ------- Light Treads Compact Wheel > --- UTILITY ---------- Large Storage Unit Light Armor Plating > --- WEAPON ----------- Small Laser Light Assault Rifle > --- INVENTORY -------- Light Ion Engine Light Treads Aluminum Leg Wheel Structural Scanner Sensor Array Hacking Suite Mining Laser [Rating: 8] Favorites ----------- Power Light Ion Engine Engine Light Ion Engine Propulsion Light Treads Treads Light Treads Leg Aluminum Leg Wheel Compact Wheel Utility Large Storage Unit Device Structural Scanner Storage Large Storage Unit Protection Light Armor Plating Weapon Small Laser Energy Gun Small Laser Ballistic Gun Light Assault Rifle Build | -11 -10 -10 ------- Run | Yrd Mat Min Slots Evolved . | . . . Power . | . . . Propulsion . | . . . Utility . | . . . Weapon . | . . . Parts Attached 11 | . 11 . Power 3 | . 3 . Engine 3 | . 3 . Core . | . . . Reactor . | . . . Propulsion 2 | . 2 . Treads 1 | . 1 . Leg . | . . . Wheel 1 | . 1 . Hover . | . . . Flight . | . . . Utility 3 | . 3 . Device 1 | . 1 . Storage 1 | . 1 . Processor . | . . . Hackware . | . . . Protection 1 | . 1 . Artifact . | . . . Weapon 3 | . 3 . Energy Gun 2 | . 2 . Energy Cannon . | . . . Ballistic Gun 1 | . 1 . Ballistic Cannon . | . . . Launcher . | . . . Special Weapon . | . . . Impact Weapon . | . . . Slashing Weapon . | . . . Piercing Weapon . | . . . Special Melee Weapon . | . . . Unidentified Prototypes . | . . . Parts Lost 5 | . 4 1 Power 2 | . 1 1 Propulsion 1 | . 1 . Utility 1 | . 1 . Weapon 1 | . 1 . Highest Loss Streak 3 | . 3 1 To Critical Strikes . | . . . Average Backups 6 | . 7 6 Power . | . . . Propulsion 2 | . 3 2 Utility 2 | . 2 3 Weapon . | . . 1 Tool/Special . | . . . Unused Backups 13 | . 6 7 Power 1 | . 1 . Propulsion 4 | . 2 2 Utility 3 | . 1 2 Weapon 4 | . 2 2 Tool/Special 1 | . . 1 Average Slot Usage (%) 96 | . 95 100 Engine 13 | . 13 14 Treads 10 | . 9 14 Leg 8 | . 11 . Wheel 9 | . 7 14 Storage 16 | . 16 14 Protection 9 | . 7 14 Energy Gun 18 | . 14 28 Ballistic Gun 9 | . 13 . Peak Build Rating 8 | . 8 8 Average Rating 7 | . 6 7 On Entrance 6 | 6 6 7 Avg Prop Armor Cover (%) 9 | . 9 8 Naked Turns . | . . . Heaviest Build 30 | 11 30 30 Greatest Support 20 | 20 20 20 Greatest Overweight (x) 2 | . 2 1 Average Overweight (x) . | . . 1 Largest Inventory Capacity 15 | . 15 15 Average Capacity 12 | . 11 15 Most Carried 8 | . 8 8 Average Carried 6 | . 7 6 Final Capacity 15 | 8 15 15 Final Carried 8 | 6 6 8 Class Distribution -------------------- 100% | Mutant Dominant Class ---------------- Mutant | -10/Materials Mutant | -10/Mines Resources | -11 -10 -10 ----------- Run | Yrd Mat Min Matter Collected 382 | 168 214 . Remotely . | . . . Salvage Created 462 | . 428 34 Parts 40 | . 36 4 Haulers Intercepted 2 | . 2 . Recyclers Shooed 1 | . . 1 Parts Field Recycled . | . . . Retrieved Matter . | . . . Parts Self-Destructed . | . . . Prevented . | . . . Parts Restored . | . . . Kills | -11 -10 -10 ------- Run | Yrd Mat Min Combat Hostiles Destroyed 13 | . 10 3 Guns 11 | . 10 1 AOE 2 | . . 2 Classes Destroyed 6 | . 6 . Worker 1 | . 1 . Hauler 2 | . 2 . Recycler 1 | . 1 . Operator 1 | . 1 . Swarmer 11 | . 8 3 Grunt 2 | . 2 . Best Kill Streak 4 | . 4 3 Combat Bots Only 3 | . 3 3 Max Kills in Single Turn 2 | . 2 1 Gunslinging 1 | . 1 . Exploded 1 | . . 1 Melee . | . . . Uniques/NPCs Destroyed . | . . . Combat | -11 -10 -10 -------- Run | Yrd Mat Min Hostile Shots Fired 110 | . 96 14 Missed 34 | . 28 6 Hits 76 | . 68 8 Projectile 76 | . 68 8 AOE 9 | . 1 8 Critical Strikes 1 | . 1 . Damage Taken 965 | . 708 257 Core 259 | . 184 75 Absorbed by Shields . | . . . Core Remaining (%) 100 | 100 . . Volleys Fired 59 | . 52 7 Largest 2 | . 2 2 Hottest 80 | . 60 80 Shots Fired 114 | . 100 14 Gun 114 | . 100 14 Cannon . | . . . Launcher . | . . . Special . | . . . Kinetic 49 | . 49 . Thermal 51 | . 51 . Explosive . | . . . Electromagnetic 14 | . . 14 Robot Hit Streak 16 | . 16 6 Robot Miss Streak 5 | . 5 3 Penetration Max . | . . . Secondary Targets 6 | . 5 1 Max Gunslinging Chain 1 | . 1 1 Shots Hit Robots 71 | . 63 8 Core Hits 27 | . 24 3 Critical Kills . | . . . Critical Parts Destroyed 1 | . 1 . Critical Strikes 1 | . 1 . Destroy 1 | . 1 . Melee Attacks . | . . . Impact . | . . . Slashing . | . . . Piercing . | . . . Sneak Attacks . | . . . Combat Hostiles . | . . . Follow-up Attacks . | . . . Damage Inflicted 903 | . 703 200 Guns 780 | . 703 77 Cannons . | . . . Explosions 123 | . . 123 Melee . | . . . Ramming . | . . . Kinetic 313 | . 313 . Thermal 513 | . 390 123 Explosive . | . . . Electromagnetic 77 | . . 77 Impact . | . . . Slashing . | . . . Piercing . | . . . Highest Corruption . | . . . Average Corruption . | . . . Corruption Purged . | . . . Corruption Blocked . | . . . Overload Shots . | . . . Overflow Damage 22 | . . 22 Projectiles . | . . . Explosions 22 | . . 22 Melee . | . . . Knockbacks . | . . . Impact . | . . . Kinetic . | . . . Secondary . | . . . Self-Inflicted Damage 12 | . . 12 Shots 1 | . . 1 Rammed . | . . . Targets Rammed . | . . . Kicked . | . . . Crushed . | . . . Highest Temperature 93 | . 53 93 Average Temperature 23 | . 19 42 Received Heat Transfer 78 | . 78 . Siege Activations . | . . . Martial Activations . | . . . Shielding Activations . | . . . Robots Disrupted . | . . . Combat Hostiles . | . . . Robots Corrupted . | . . . Combat Hostiles . | . . . Parts Fried . | . . . Impact Corruptions . | . . . Robots Melted . | . . . Combat Hostiles . | . . . Parts Melted . | . . . Heat Transferred 1050 | . 850 200 Parts Sabotaged . | . . . Parts Stolen . | . . . Parts Stripped . | . . . Power Chain Reactions 2 | . . 2 Alert | -11 -10 -10 ------- Run | Yrd Mat Min Maximum Alert Level . | . . . Low Security (%) 100 | . 100 100 Level 1 . | . . . Level 2 . | . . . Level 3 . | . . . Level 4 . | . . . Level 5 . | . . . High Security . | . . . Max Security . | . . . Peak Influence 102 | . 102 91 Initial 15 | . . 15 Average 30 | . 37 14 Influence Increases 487 | . 396 91 Destroy 0b10 Robot/C 260 | . 200 60 Destroy 0b10 Robot/NC 25 | . 25 . Destroy Leader 54 | . 44 10 Successful Hack 22 | . 22 . Select Force Hacks 30 | . 30 . Disable Machine 15 | . . 15 Destroy Structure 6 | . . 6 Lose Combat Pursuer 75 | . 75 . Influence Decreases 444 | . 356 88 Entered New Map 25 | . . 25 Time Decay 373 | . 320 53 Lost Part 46 | . 36 10 Squads Dispatched 2 | . 2 . Investigation 1 | . 1 . Extermination . | . . . Reinforcement 1 | . 1 . Assault . | . . . Garrison . | . . . Intercept . | . . . Searches Triggered . | . . . Construction Impeded . | . . . Haulers Reinforced . | . . . Active Scanning Responses . | . . . Cargo Convoy Interrupts . | . . . Stealth | -11 -10 -10 --------- Run | Yrd Mat Min Distress Signals 1 | . 1 . Communications Jammed . | . . . Distress Signals . | . . . Times Spotted 25 | . 21 4 Peak Tracking Total 5 | . 5 3 Tactical Retreats 4 | . 4 . Traps | -11 -10 -10 ------- Run | Yrd Mat Min Traps Triggered 2 | . 2 . Indirectly . | . . . Trap Hack Attempts . | . . . Triggered . | . . . Disarmed . | . . . Reprogrammed . | . . . Reused . | . . . Traps Extracted . | . . . Installed . | . . . Triggered . | . . . Machines | -11 -10 -10 ---------- Run | Yrd Mat Min Machines Disabled 1 | . . 1 Max in Single Turn 1 | . . 1 Machines Repaired . | . . . Machines Dismantled . | . . . Machines Sabotaged . | . . . Overloaded Fab Kills . | . . . Hacking | -11 -10 -10 --------- Run | Yrd Mat Min Machines Accessed 6 | . 6 . Terminals 4 | . 4 . Fabricators . | . . . Repair Stations 1 | . 1 . Recycling Units 1 | . 1 . Scanalyzers . | . . . Garrison Access . | . . . Total Hacks 23 | . 23 . Successful 13 | . 13 . Failed 10 | . 10 . Catastrophic . | . . . Database Lockouts . | . . . Manual 11 | . 11 . Terminals 18 | . 18 . Fabricators . | . . . Repair Stations 3 | . 3 . Recycling Units 2 | . 2 . Scanalyzers . | . . . Garrison Access . | . . . Terminal Hacks 7 | . 7 . Robot Analysis 2 | . 2 . Prototype ID Bank 1 | . 1 . Branch Access Points 1 | . 1 . Locate Traps 1 | . 1 . Registered Components 1 | . 1 . Zone Layout 1 | . 1 . Fabricator Hacks . | . . . Repair Station Hacks 1 | . 1 . Refit 1 | . 1 . Recycling Unit Hacks 1 | . 1 . Report Inventory 1 | . 1 . Scanalyzer . | . . . Garrison Access Hacks . | . . . Unauthorized Hacks 4 | . 4 . Terminals 3 | . 3 . Assimilate 1 | . 1 . Botnet 2 | . 2 . Fabricators . | . . . Repair Stations . | . . . Recycling Units 1 | . 1 . Tunnel 1 | . 1 . Scanalyzers . | . . . Garrison Access . | . . . Data Cores Recovered . | . . . Used . | . . . Hacking Detections 4 | . 4 . Full Trace Events 1 | . 1 . Feedback Events . | . . . Feedback Blocked . | . . . Robot Schematics Acquired . | . . . Robots Built . | . . . Authchips . | . . . Time . | . . . Total Robot Build Rating . | . . . Part Schematics Acquired . | . . . Parts Built . | . . . Authchips . | . . . Time . | . . . Total Part Build Rating . | . . . Part Studies Acquired . | . . . Parts Repaired . | . . . Time . | . . . Parts Recycled . | . . . Recycled Matter . | . . . Retrieved Matter . | . . . Retrieved Components . | . . . Parts Scanalyzed . | . . . Part Schematics Acquired . | . . . Parts Damaged . | . . . Bothacking | -11 -10 -10 ------------ Run | Yrd Mat Min Used RIF Installer . | . . . Robots Hacked . | . . . Non-combat . | . . . Combat . | . . . Robot Hacks Applied . | . . . Relay Couplers Released . | . . . Fabnet Peak Effective % . | . . . Robots Rewired . | . . . Allies Hacked . | . . . Hacks Repelled . | . . . Allies | -11 -10 -10 -------- Run | Yrd Mat Min Total Allies . | . . . Largest Group . | . . . Highest-Rated Group . | . . . Highest-Rated Ally . | . . . Total Orders . | . . . Ally Attacks . | . . . Total Damage . | . . . Kills . | . . . Allies Corrupted . | . . . Allies Melted . | . . . Intel | -11 -10 -10 ------- Run | Yrd Mat Min Active Infowar (turns) 7 | . 7 . Structural 7 | . 7 . Robot Analysis Total 2 | . 2 . Derelict Logs Recovered . | . . . Drone Launches . | . . . Drone Recoveries . | . . . Exploration | -11 -10 -10 ------------- Run | Yrd Mat Min Turns Passed 1433 | . 1033 400 Spaces Moved 902 | 1 618 283 Core . | . . . Treads 155 | . 124 31 Legs 221 | 1 220 . Wheels 526 | . 274 252 Hover . | . . . Flight . | . . . Fastest Speed 115 | 120 115 115 Average Speed 134 | 120 136 128 Slowest Speed 260 | 120 260 240 Overloaded Moves . | . . . Propulsion Burnouts . | . . . Robots Hopped . | . . . Potential Cave-ins . | . . . Cave-ins Triggered . | . . . Exploration Rate (%) 45 | 2 81 54 Regions Visited 2 Branch Regions 1 Pre-discovered Areas 1 | . 1 . Known Exits Taken 1 | . 1 . Unknown Exits Taken 1 | 1 . . Scrap Searched 1 | . . 1 Spaces Dug . | . . . Terrain Destroyed 6 | . . 6 Melee . | . . . Projectile . | . . . AOE 6 | . . 6 Terrain Rammed . | . . . Walls Destroyed . | . . . Machines Disabled . | . . . Actions | -11 -10 -10 --------- Run | Yrd Mat Min Total 1014 | . 709 305 Wait 36 | . 23 13 Move 900 | . 617 283 Hop . | . . . Pick Up 5 | . 3 2 Fast Attach 3 | . 3 . Attach 2 | . 2 . Detach 1 | . 1 . Swap 6 | . 6 . Drop 2 | . 2 . Fire 59 | . 52 7 Melee . | . . . Ram . | . . . Kick . | . . . Crush . | . . . Escape Stasis . | . . . Rewire . | . . . Trap . | . . . Miscellaneous . | . . . Route ------- -11/Scrapyard -10/Materials (discovered 4 exits: [*Mat x3] / *Min) -10/Mines (discovered 2 exits: [*Mat] / [*Sub]) History --------- Turn | Location | Event 1 | -11/Scrapyard | Discovered new exit (range 0) 1 | -11/Scrapyard | Entered Materials 120 | -10/Materials | Identified exit to Mines 270 | -10/Materials | Lost 3 parts (1p1u1w) 315 | -10/Materials | Build established: Mutant 403 | -10/Materials | Core integrity fell below 50% 512 | -10/Materials | Discovered new exit (range 15) 638 | -10/Materials | Discovered new exit (range 5) 684 | -10/Materials | Discovered new exit (range 16) 1034 | -10/Materials | Entered Mines 1286 | -10/Mines | Found DCF Scrap (13 items) 1339 | -10/Mines | Discovered new exit (range 5) 1360 | -10/Mines | Discovered new exit (range 11) 1431 | -10/Mines | Core integrity fell below 20% 1434 | -10/Mines | Destroyed by YI-UF0 with YI-UF0's Doublenader Last Messages --------------- 01316_ T-07 Excavator is excavating. 01339_ EXIT=FOUND 01342_ T-07 Excavator is excavating. 01357_ Chain reaction triggered in Lgt. Ion Engine. 01357_ Destroyed Flight Unit. 01357_ S-10 Pest destroyed. 01360_ Switching to secondary target: S-10 Pest. 01360_ EXIT=FOUND 01363_ Chain reaction triggered in Lgt. Ion Engine. 01363_ S-10 Pest destroyed. 01363_ Destroyed Com. Wheel. 01371_ U-05 Engineer lays Concrete. 01378_ U-05 Engineer builds a Wall. 01429_ Destroyed Shock Absorption System. 01431_ The unstable cave ceiling collapses. 01431_ K-01 Serf collects debris. 01432_ Lgt. Ion Engine destroyed. 01434_ K-01 Serf collects debris. Map ----- +----------------------------------------------------+ | ?????????????????????????????????###### | | ??????????????????????????????????????## | | ???????????????????????????????????????## | | ????????????????????????????????????????### | | ??????????????????????????????????????????## | | ??????????????????????????????????????????## | | ??????????????????????????????????????????# | | ??????????????????????????????????????????# | | ??????????????????????????????????????????# | | ??????????????????????????????????????????# | | ?????????????????????????????????????????## | | ?????????????????????????????????????????# | | ?????????????????????????????????????????# | | ?????????????????????????????????????????## | | ??????????????????????????????????????????# | | ??????????????????????????????#???????????# | | ????????????????##?????###### #???????????# | | ???????????????? ##??? # #???????????# | | ?????????????#### ? ?### * # ????????????# | | ????????????## # ## *% ?????######### | | ????????????# [ # # # ##?????# | | ????????????# ??????# ######## | | ????????????# # ##??????# #####??? | | ?????????????# # # #??????# ## #??? | | ?????????????# # ######## # ##?? | | ?????????????# @ % t ##? | | ?????????????# % k u r #? | | ?????????????# ##k######## # #? | | ?????????????# ###??????# ## #? | | ????????????# # ###????????# ### ##? | | ????????????# % ## #??????????# #?## #?? | | ????????????# !=#?# #??????????# #??# #?? | | ????????????# ?? #?????????? #??# ### | | ???????????# ?? ##?????????? ??# | | ??????????# ??#???????????? #??#### | | ?????????? !! ???????????????##??????# | | ?????????# % ???????????????????????# | | ??????????## !g!???????????????????????## | | ???????????? = % ???????????????????????# | | ??????????????? #???????????????????????# | | ?????????????????????????????????????????# | | ????????????????????????????????????????#< | | ????????????????????????????????????????### | | ??????????????????????????????????????????## | | ???????????????????????????????????????????? | | ???????????????????????????????????????????? | | ???????????????????????????????????????????? | | ???????????????????????????????????????????? | | ???????????????????????????????????????????? | | ???????????????????????????????????????????? | +----------------------------------------------------+ Best States ------------- Heat Dissipation 25 Energy Generation 10 Energy Capacity 125 Matter Stores 300 Matter Capacity 300 Sight Range 16 Terrain Scan Density 10 Armor Coverage 150 Evasion (%) 55 Recoil Reduction 1 Item Schematics ----------------- None Robot Schematics ------------------ None Fabricated ------------ Nothing Repaired ---------- Nothing Studied --------- None Alien Tech Used ----------------- None Achievements -------------- None Challenges ------------ None Game ------ Seed ScanInsulatedExtrapolator Manual? 0 Play Time 00:13:15 Cumulative 87.6 hours Start 2025.11.02 @ 05:51:46 End 2025.11.02 @ 06:03:44 Sessions 1 Manual Loads 0 Difficulty Rogue Special Mode None Game No. 99 Rogue 69 Adventurer 30 Explorer 0 Win Type - Total 1 Types 1/0/0/0/0/0/0/0/0/0 Lore% 45 Gallery% 41 Achievement% 28 Wizard Run 0 Options --------- Layout 2 ASCII 0 Keyboard 1 Movement Arrows Keybinds 0 Fullscreen 1 Font 24/Smallcaps Map View 50x44 Zoom Use 0% Tactical HUD 1 Map Filters NONE Filters NONE Steam 1 RUN: fad5387c-8b30-4c3b-9208-bfdeb2009b29